fUST/lending_fUST_20250707
["ID","MTS","AMOUNT","RATE_DAILY","PERIOD"]
[370098740,1751879446879,-3000.0,0.0001992,2]
[370098741,1751879446888,-1500.0,0.00019922,2]
[370098742,1751879446898,-1500.0,0.00019922,2]
[370098743,1751879446907,-1624.88944406,0.00019922,2]
[370098744,1751879446917,-1500.0,0.00019928,2]
[370098745,1751879446926,-3000.0,0.0001993,2]
[370098746,1751879446936,-3000.0,0.0001994,2]
[370098747,1751879446945,-3000.0,0.0001995,2]
[370098748,1751879446954,-3000.0,0.0001996,2]
[370098749,1751879446963,-3000.0,0.0001997,2]
[370098750,1751879446974,-3000.0,0.0001998,2]
[370098751,1751879446983,-3000.0,0.0001999,2]
[370098752,1751879446993,-3000.0,0.0002,2]
[370098753,1751879447002,-1054.20955437,0.0002,2]
[370098754,1751879447011,-300.0,0.0002,2]
[370098755,1751879447021,-4038.663763,0.0002001,2]
[370098756,1751879447031,-356.84051267,0.00020107,2]
[370098757,1751879447040,-5000.0,0.00020124,2]
[370098758,1751879447049,-803.61,0.00020145,2]
[370098759,1751879447059,-460.0,0.00020145,2]
[370098760,1751879447069,-3781.15,0.00020145,2]
[370098761,1751879447078,-5226.02,0.00020145,2]
[370098762,1751879447088,-460.0,0.00020145,2]
[370098763,1751879447097,-247.65,0.00020146,2]
[370098764,1751879447106,-460.0,0.00020146,2]
[370098765,1751879447116,-830.14,0.00020146,2]
[370098766,1751879447125,-460.0,0.00020147,2]
[370098767,1751879447134,-388.38,0.00020147,2]
[370098768,1751879447143,-1372.21,0.00020147,2]
[370098769,1751879447152,-179.71419434,0.00020147,2]
[370098770,1751879447162,-460.0,0.00020147,2]
[370098771,1751879447171,-649.32,0.00020147,2]
[370098772,1751879447180,-971.01,0.00020147,2]
[370098773,1751879447189,-469.63,0.00020147,2]
[370098774,1751879447199,-1971.85,0.00020147,2]
[370098775,1751879447208,-2454.34,0.00020147,2]
[370098776,1751879447218,-460.0,0.00020152,2]
[370098777,1751879447227,-460.0,0.00020152,2]
[370098778,1751879447236,-356.84051267,0.00020383,3]
[370098779,1751879447246,-803.61,0.00020419,2]
[370098780,1751879447256,-460.0,0.00020419,2]
[370098781,1751879447266,-3781.15,0.00020419,2]
[370098782,1751879447275,-5226.02,0.00020419,2]
[370098783,1751879447284,-460.0,0.00020419,2]
[370098784,1751879447293,-460.0,0.0002042,2]
[370098785,1751879447302,-830.14,0.0002042,2]
[370098786,1751879447311,-460.0,0.00020421,2]
[370098787,1751879447321,-1372.21,0.00020421,2]
[370098788,1751879447330,-460.0,0.00020421,2]
[370098789,1751879447339,-649.32,0.00020421,2]
[370098790,1751879447349,-971.01,0.00020421,2]
[370098791,1751879447358,-469.63,0.00020421,2]
[370098792,1751879447368,-1971.85,0.00020421,2]
[370098793,1751879447377,-2454.34,0.00020421,2]
[370098794,1751879447386,-460.0,0.00020426,2]
[370098795,1751879447396,-460.0,0.00020426,2]
[370098796,1751879447405,-505.94513548,0.0002047,2]
[370098797,1751879447414,-522.75019543,0.0002047,2]
[370098798,1751879447424,-536.94146932,0.00020476,2]
[370098799,1751879447433,-1562.69012782,0.00020485,2]
[370098800,1751879447442,-2039.16,0.000206,2]
[370098801,1751879447452,-651.834,0.00020656,2]
[370098802,1751879447461,-356.84051267,0.00020659,3]
[370098803,1751879447471,-223.0315306,0.0002067,2]
[370098804,1751879447481,-803.61,0.00020693,2]
[370098805,1751879447492,-460.0,0.00020693,2]
[370098806,1751879447504,-3781.15,0.00020693,2]
[370098807,1751879447517,-5226.02,0.00020693,2]
[370098808,1751879447526,-576.76,0.00020693,2]
[370098809,1751879447536,-460.0,0.00020694,2]
[370098810,1751879447545,-830.14,0.00020694,2]
[370098811,1751879447555,-460.0,0.00020695,2]
[370098812,1751879447565,-1372.21,0.00020695,2]
[370098813,1751879447574,-460.0,0.00020695,2]
[370098814,1751879447584,-649.32,0.00020695,2]
[370098815,1751879447593,-971.01,0.00020695,2]
[370098816,1751879447603,-469.63,0.00020695,2]
[370098817,1751879447613,-1971.85,0.00020695,2]
[370098818,1751879447622,-2454.34,0.00020695,2]
[370098819,1751879447632,-460.0,0.000207,2]
[370098820,1751879447641,-460.0,0.000207,2]
[370098821,1751879447651,-5000.0,0.00020906,2]
[370098822,1751879447662,-356.84051267,0.00020934,4]
[370098823,1751879447671,-803.61,0.00020967,2]
[370098824,1751879447681,-460.0,0.00020967,2]
[370098825,1751879447692,-3781.15,0.00020967,2]
[370098826,1751879447701,-5226.02,0.00020967,2]
[370098827,1751879447710,-460.0,0.00020968,2]
[370098828,1751879447720,-830.14,0.00020968,2]
[370098829,1751879447730,-460.0,0.00020969,2]
[370098830,1751879447739,-1372.21,0.00020969,2]
[370098831,1751879447749,-460.0,0.00020969,2]
[370098832,1751879447758,-649.32,0.00020969,2]
[370098833,1751879447767,-971.01,0.00020969,2]
[370098834,1751879447777,-469.63,0.00020969,2]
[370098835,1751879447786,-1971.85,0.00020969,2]
[370098836,1751879447796,-2454.34,0.00020969,2]
[370098837,1751879447806,-460.0,0.00020974,2]
[370098838,1751879447815,-460.0,0.00020974,2]
[370098839,1751879447825,-3000.0,0.00021,2]
[370098840,1751879447834,-3000.0,0.0002101,2]
[370098841,1751879447843,-3000.0,0.0002102,2]
[370098842,1751879447852,-3000.0,0.0002103,2]
[370098843,1751879447861,-3000.0,0.0002104,2]
[370098844,1751879447872,-3000.0,0.0002105,2]
[370098845,1751879447881,-3000.0,0.0002106,2]
[370098846,1751879447890,-3000.0,0.0002107,2]
[370098847,1751879447900,-3000.0,0.0002108,2]
[370098848,1751879447909,-281.06913122,0.00021087,2]
[370098849,1751879447919,-500.0,0.00021087,2]
[370098850,1751879447928,-3000.0,0.0002109,2]
[370098851,1751879447938,-3000.0,0.000211,2]
[370098852,1751879447948,-3000.0,0.0002111,2]
[370098853,1751879447957,-3000.0,0.0002112,2]
[370098854,1751879447966,-3000.0,0.0002113,2]
[370098855,1751879447976,-3000.0,0.0002114,2]
[370098856,1751879447985,-3000.0,0.0002115,2]
[370098857,1751879447994,-3000.0,0.0002116,2]
[370098858,1751879448003,-3000.0,0.0002117,2]
[370098859,1751879448015,-3000.0,0.0002118,2]
[370098860,1751879448025,-3000.0,0.0002119,2]
[370098861,1751879448034,-3000.0,0.000212,2]
[370098862,1751879448043,-3000.0,0.0002121,2]
[370098863,1751879448054,-356.84051267,0.0002121,4]
[370098864,1751879448063,-3000.0,0.0002122,2]
[370098865,1751879448073,-3000.0,0.0002123,2]
[370098866,1751879448082,-3000.0,0.0002124,2]
[370098867,1751879448092,-803.61,0.00021241,2]
[370098868,1751879448101,-460.0,0.00021241,2]
[370098869,1751879448111,-3781.15,0.00021241,2]
[370098870,1751879448121,-5226.02,0.00021241,2]
[370098871,1751879448132,-154.95699189,0.00021242,2]
[370098872,1751879448143,-830.14,0.00021242,2]
[370098873,1751879448153,-460.0,0.00021243,2]
[370098874,1751879448164,-1372.21,0.00021243,2]
[370098875,1751879448175,-460.0,0.00021243,2]
[370098876,1751879448186,-649.32,0.00021243,2]
[370098877,1751879448196,-971.01,0.00021243,2]
[370098878,1751879448207,-469.63,0.00021243,2]
[370098879,1751879448218,-1971.85,0.00021243,2]
[370098880,1751879448229,-2454.34,0.00021243,2]
[370098881,1751879448240,-460.0,0.00021248,2]
[370098882,1751879448250,-590.2820337,0.00021248,2]
[370098883,1751879448262,-3000.0,0.0002125,2]
[370098884,1751879448272,-3000.0,0.0002126,2]
[370098885,1751879448283,-3000.0,0.0002127,2]
[370098886,1751879448293,-3000.0,0.0002128,2]
[370098887,1751879448302,-3000.0,0.0002129,2]
[370098888,1751879448312,-3000.0,0.000213,2]
[370098889,1751879448321,-3000.0,0.0002131,2]
[370098890,1751879448331,-3000.0,0.0002132,2]
[370098891,1751879448341,-3000.0,0.0002133,2]
[370098892,1751879448351,-3000.0,0.0002134,2]
[370098893,1751879448362,-3000.0,0.0002135,2]
[370098894,1751879448374,-3000.0,0.0002136,2]
[370098895,1751879448384,-3000.0,0.0002137,2]
[370098896,1751879448394,-3000.0,0.0002138,2]
[370098897,1751879448404,-3000.0,0.0002139,2]
[370098898,1751879448415,-3000.0,0.000214,2]
[370098899,1751879448425,-3000.0,0.0002141,2]
[370098900,1751879448436,-3000.0,0.0002142,2]
[370098901,1751879448446,-5893.508053,0.0002143,2]
[370098902,1751879448456,-356.84051267,0.00021486,5]
[370098903,1751879448467,-803.61,0.00021515,2]
[370098904,1751879448477,-239.00947577,0.00021515,2]
[370098905,1751879448491,-3781.15,0.00021515,2]
[370098906,1751879448502,-5226.02,0.00021515,2]
[370098907,1751879448513,-460.0,0.00021516,2]
[370098908,1751879448523,-1372.21,0.00021516,2]
[370098909,1751879448535,-830.14,0.00021516,2]
[370098910,1751879448547,-460.0,0.00021516,2]
[370098911,1751879448558,-649.32,0.00021516,2]
[370098912,1751879448569,-971.01,0.00021516,2]
[370098913,1751879448580,-469.63,0.00021516,2]
[370098914,1751879448591,-1971.85,0.00021516,2]
[370098915,1751879448602,-2454.34,0.00021516,2]
[370098916,1751879448612,-460.0,0.00021522,2]
[370098917,1751879448622,-500.0,0.00021667,2]
[370098918,1751879448633,-356.84051267,0.00021762,5]
[370098919,1751879448643,-803.61,0.00021789,2]
[370098920,1751879448655,-3781.15,0.00021789,2]
[370098921,1751879448666,-5226.02,0.00021789,2]
[370098922,1751879448676,-460.0,0.0002179,2]
[370098923,1751879448687,-1372.21,0.0002179,2]
[370098924,1751879448698,-830.14,0.0002179,2]
[370098925,1751879448708,-460.0,0.0002179,2]
[370098926,1751879448718,-649.32,0.0002179,2]
[370098927,1751879448728,-971.01,0.0002179,2]
[370098928,1751879448740,-469.63,0.0002179,2]
[370098929,1751879448750,-1971.85,0.0002179,2]
[370098930,1751879448762,-2454.34,0.0002179,2]
[370098931,1751879448772,-460.0,0.00021796,2]
[370098932,1751879448782,-1562.69012782,0.00021827,2]
[370098933,1751879448793,-460.0,0.00021899,2]
[370098934,1751879448803,-460.0,0.00021899,2]
[370098935,1751879448815,-460.0,0.00021899,2]
[370098936,1751879448825,-460.0,0.00021899,2]
[370098937,1751879448835,-460.0,0.00021899,2]
[370098938,1751879448846,-460.0,0.00021899,2]
[370098939,1751879448856,-460.0,0.00021899,2]
[370098940,1751879448865,-460.0,0.00021899,2]
[370098941,1751879448875,-2039.16,0.000219,2]
[370098942,1751879448885,-150.10871217,0.00021918,2]
[370098943,1751879448895,-500.0,0.00021918,2]
[370098944,1751879448906,-500.0,0.00021918,2]
[370098945,1751879448917,-500.0,0.00021918,2]
[370098946,1751879448927,-500.0,0.00021918,2]
[370098947,1751879448937,-500.0,0.00021918,2]
[370098948,1751879448948,-500.0,0.00021918,2]
[370098949,1751879448958,-500.0,0.00021918,2]
[370098950,1751879448969,-500.0,0.00021918,2]
[370098951,1751879448979,-500.0,0.00021918,2]
[370098952,1751879448988,-500.0,0.00021918,2]
[370098953,1751879448999,-271.5486217,0.00021918,2]
[370098954,1751879449010,-500.0,0.00021918,2]
[370098955,1751879449020,-500.0,0.00021918,2]
[370098956,1751879449030,-500.0,0.00021918,2]
[370098957,1751879449039,-500.0,0.00021918,2]
[370098958,1751879449050,-500.0,0.00021918,2]
[370098959,1751879449059,-400.0,0.00021918,2]
[370098960,1751879449069,-500.11167122,0.00021973,2]
[370098961,1751879449079,-258.71414731,0.00021973,2]
[370098962,1751879449088,-500.0,0.00021973,2]
[370098963,1751879449098,-500.0,0.00021973,2]
[370098964,1751879449107,-500.0,0.00021973,2]
[370098965,1751879449118,-318.01874892,0.00021973,2]
[370098966,1751879449128,-600.0,0.00021973,2]
[370098967,1751879449139,-500.0,0.00021973,2]
[370098968,1751879449149,-500.0,0.00021973,2]
[370098969,1751879449159,-500.0,0.00021973,2]
[370098970,1751879449169,-500.79322298,0.00021973,2]
[370098971,1751879449179,-521.84086213,0.00021973,2]
[370098972,1751879449189,-500.76187743,0.00021973,2]
[370098973,1751879449199,-500.0,0.00021973,2]
[370098974,1751879449209,-500.0,0.00021973,2]
[370098975,1751879449220,-500.0,0.00021973,2]
[370098976,1751879449231,-172.49932422,0.00021973,2]
[370098977,1751879449241,-500.0,0.00021973,2]
[370098978,1751879449253,-160.0,0.00022,7]
[370098979,1751879449264,-2184.33,0.00022,7]
[370098980,1751879449274,-39231.23,0.00022,7]
[370098981,1751879449286,-87645.15,0.00022,2]
[370098982,1751879449296,-214.06929976,0.00022,7]
[370098983,1751879449306,-848.27993403,0.00022,7]
[370098984,1751879449317,-160.0,0.00022,7]
[370098985,1751879449327,-12584.46609586,0.00022,7]
[370098986,1751879449337,-356.84051267,0.00022038,6]
[370098987,1751879449347,-219.07759081,0.00022039,2]
[370098988,1751879449467,-12.20610642,0.00022039,2]
[370098989,1751879449477,-803.61,0.00022063,2]
[370098990,1751879449490,-3781.15,0.00022063,2]
[370098991,1751879449500,-1366.59712407,0.00022063,2]
[370098992,1751879449517,-3859.42287593,0.00022063,2]
[370098993,1751879449528,-460.0,0.00022064,2]
[370098994,1751879449539,-1372.21,0.00022064,2]
[370098995,1751879449548,-830.14,0.00022064,2]
[370098996,1751879449558,-460.0,0.00022064,2]
[370098997,1751879449568,-649.32,0.00022064,2]
[370098998,1751879449578,-971.01,0.00022064,2]
[370098999,1751879449588,-469.63,0.00022064,2]
[370099000,1751879449598,-1971.85,0.00022064,2]
[370099001,1751879449608,-2454.34,0.00022064,2]
[370099002,1751879449617,-460.0,0.0002207,2]
[370099003,1751879449628,-460.0,0.00022173,2]
[370099004,1751879449639,-460.0,0.00022173,2]
[370099005,1751879449649,-460.0,0.00022173,2]
[370099006,1751879449659,-460.0,0.00022173,2]
[370099007,1751879449670,-460.0,0.00022173,2]
[370099008,1751879449680,-460.0,0.00022173,2]
[370099009,1751879449689,-460.0,0.00022173,2]
[370099010,1751879449701,-460.0,0.00022173,2]
[370099011,1751879449711,-356.84051267,0.00022314,7]
[370099012,1751879449722,-803.61,0.00022337,2]
[370099013,1751879449732,-2594.4006114,0.00022337,2]
[370099014,1751879449751,-151.0,0.00017932,2]
[370099015,1751879449761,-1186.7493886,0.00022337,2]
[370099016,1751879449772,-5226.02,0.00022337,2]
[370099017,1751879449782,-1372.21,0.00022338,2]
[370099018,1751879449791,-830.14,0.00022338,2]
[370099019,1751879449801,-460.0,0.00022338,2]
[370099020,1751879449811,-649.32,0.00022338,2]
[370099021,1751879449820,-971.01,0.00022338,2]
[370099022,1751879449830,-469.63,0.00022338,2]
[370099023,1751879449840,-1971.85,0.00022338,2]
[370099024,1751879449850,-2454.34,0.00022338,2]
[370099025,1751879449860,-460.0,0.00022344,2]
[370099026,1751879449870,-460.0,0.00022447,2]
[370099027,1751879449879,-460.0,0.00022447,2]
[370099028,1751879449889,-268.57821066,0.00022447,2]
[370099029,1751879449899,-460.0,0.00022447,2]
[370099030,1751879449909,-460.0,0.00022447,2]
[370099031,1751879449920,-460.0,0.00022447,2]
[370099032,1751879449929,-460.0,0.00022447,2]
[370099033,1751879449939,-554.64,0.00022447,2]
[370099034,1751879449950,-722.04728116,0.00022521,2]
[370099035,1751879449961,-1000.0,0.00022521,2]
[370099036,1751879449972,-1000.0,0.00022521,2]
[370099037,1751879449982,-1200.0,0.00022521,2]
[370099038,1751879449993,-1096.20139154,0.00022521,2]
[370099039,1751879450003,-1000.0,0.00022521,2]
[370099040,1751879450013,-1000.0,0.00022521,2]
[370099041,1751879450023,-1000.0,0.00022521,2]
[370099042,1751879450033,-581.53029727,0.00022521,2]
[370099043,1751879450043,-1000.0,0.00022521,2]
[370099044,1751879450052,-1000.0,0.00022521,2]
[370099045,1751879450062,-356.84051267,0.0002259,7]
[370099046,1751879450071,-598.512413,0.00022603,2]
[370099047,1751879450081,-803.61,0.00022611,2]
[370099048,1751879450091,-3781.15,0.00022611,2]
[370099049,1751879450101,-5226.02,0.00022611,2]
[370099050,1751879450110,-1372.21,0.00022612,2]
[370099051,1751879450120,-830.14,0.00022612,2]
[370099052,1751879450130,-561.44,0.00022612,2]
[370099053,1751879450140,-649.32,0.00022612,2]
[370099054,1751879450150,-971.01,0.00022612,2]
[370099055,1751879450160,-469.63,0.00022612,2]
[370099056,1751879450170,-1971.85,0.00022612,2]
[370099057,1751879450179,-2454.34,0.00022612,2]
[370099058,1751879450189,-460.0,0.00022618,2]
[370099059,1751879450199,-460.0,0.00022721,2]
[370099060,1751879450209,-460.0,0.00022721,2]
[370099061,1751879450218,-460.0,0.00022721,2]
[370099062,1751879450228,-460.0,0.00022721,2]
[370099063,1751879450237,-460.0,0.00022721,2]
[370099064,1751879450247,-460.0,0.00022721,2]
[370099065,1751879450257,-300.0,0.00022802,2]
[370099066,1751879450266,-356.84051267,0.00022866,8]
[370099067,1751879450277,-803.73,0.00022885,2]
[370099068,1751879450288,-3781.20215504,0.00022885,2]
[370099069,1751879450298,-5226.22,0.00022885,2]
[370099070,1751879450308,-1372.27,0.00022886,2]
[370099071,1751879450318,-830.30566781,0.00022886,2]
[370099072,1751879450328,-649.41435613,0.00022886,2]
[370099073,1751879450338,-971.21,0.00022886,2]
[370099074,1751879450348,-469.66,0.00022886,2]
[370099075,1751879450359,-1971.93573702,0.00022886,2]
[370099076,1751879450370,-350.6238215,0.00022892,2]
[370099077,1751879450379,-460.0,0.00022995,2]
[370099078,1751879450391,-460.0,0.00022995,2]
[370099079,1751879450403,-460.0,0.00022995,2]
[370099080,1751879450412,-460.0,0.00022995,2]
[370099081,1751879450422,-460.0,0.00022995,2]
[370099082,1751879450432,-160.0,0.00023,2]
[370099083,1751879450442,-1500.0,0.00023068,2]
[370099084,1751879450451,-1500.0,0.00023068,2]
[370099085,1751879450460,-1500.0,0.00023068,2]
[370099086,1751879450470,-1500.0,0.00023068,2]
[370099087,1751879450479,-1500.0,0.00023068,2]
[370099088,1751879450492,-2039.16,0.000231,7]
[370099089,1751879450503,-2184.33,0.000231,7]
[370099090,1751879450514,-39231.23,0.000231,7]
[370099091,1751879450524,-168.0,0.00023137,2]
[370099092,1751879450534,-356.84051267,0.00023141,8]
[370099093,1751879450544,-168.0,0.00023147,2]
[370099094,1751879450554,-1562.69012782,0.00023169,2]
[370099095,1751879450566,-2390.0,0.00023189,2]
[370099096,1751879450576,-87645.15,0.000232,2]
[370099097,1751879450586,-460.0,0.00023269,2]
[370099098,1751879450596,-460.0,0.00023269,2]
[370099099,1751879450606,-460.0,0.00023269,2]
[370099100,1751879450616,-460.0,0.00023269,2]
[370099101,1751879450625,-239.84119403,0.00023408,2]
[370099102,1751879450635,-356.84051267,0.00023417,9]
[370099103,1751879450646,-168.0,0.00023505,2]
[370099104,1751879450656,-460.0,0.00023543,2]
[370099105,1751879450667,-460.0,0.00023543,2]
[370099106,1751879450676,-168.0,0.00023616,2]
[370099107,1751879450688,-663.66441079,0.00023616,2]
[370099108,1751879450699,-2000.0,0.00023616,2]
[370099109,1751879450709,-2000.0,0.00023616,2]
[370099110,1751879450719,-2000.0,0.00023616,2]
[370099111,1751879450729,-2000.0,0.00023616,2]
[370099112,1751879450739,-356.84051267,0.00023693,9]
[370099113,1751879450749,-967.0,0.00023703,2]
[370099114,1751879450759,-646.0,0.00023703,2]
[370099115,1751879450769,-2153.0,0.00023703,2]
[370099116,1751879450779,-406.0,0.00023703,2]
[370099117,1751879450789,-150.0,0.00023709,2]
[370099118,1751879450798,-168.0,0.00023765,2]
[370099119,1751879450808,-150.0,0.00023781,2]
[370099120,1751879450818,-168.0,0.00023782,2]
[370099121,1751879450827,-172.9991932,0.00023808,2]
[370099122,1751879450837,-164.92476611,0.00023808,2]
[370099123,1751879450846,-460.0,0.00023817,2]
[370099124,1751879450855,-500.0,0.00023859,2]
[370099125,1751879450865,-5430.38490541,0.000239,2]
[370099126,1751879450875,-168.0,0.00023919,2]
[370099127,1751879450884,-356.84051267,0.00023969,10]
[370099128,1751879450894,-164.92476611,0.00023973,2]
[370099129,1751879450903,-165.456041,0.00023973,2]
[370099130,1751879450913,-151.0,0.00023982,7]
[370099131,1751879450922,-1000.0,0.00023989,5]
[370099132,1751879450932,-160.0,0.00024,3]
[370099133,1751879450941,-160.0,0.00024,3]
[370099134,1751879450951,-160.0,0.00024,7]
[370099135,1751879450960,-160.0,0.00024,3]
[370099136,1751879450970,-214.06929976,0.00024,7]
[370099137,1751879450979,-848.27993403,0.00024,7]
[370099138,1751879450989,-215.21338352,0.00024,7]
[370099139,1751879450999,-215.21338352,0.00024,7]
[370099140,1751879451009,-160.0,0.00024,7]
[370099141,1751879451019,-160.0,0.00024,7]
[370099142,1751879451029,-160.0,0.00024,7]
[370099143,1751879451039,-160.0,0.00024,7]
[370099144,1751879451048,-837.79946008,0.00024,7]
[370099145,1751879451058,-837.79946008,0.00024,7]
[370099146,1751879451068,-160.0,0.00024,7]
[370099147,1751879451078,-160.0,0.00024,7]
[370099148,1751879451087,-230.48668418,0.00024,7]
[370099149,1751879451097,-230.48668418,0.00024,7]
[370099150,1751879451106,-460.0,0.00024091,2]
[370099151,1751879451116,-168.0,0.000241,2]
[370099152,1751879451126,-172.9991932,0.00024137,2]
[370099153,1751879451135,-164.92476611,0.00024137,2]
[370099154,1751879451146,-610.14731004,0.00024164,2]
[370099155,1751879451156,-2571.23675183,0.00024164,2]
[370099156,1751879451165,-2500.0,0.00024164,2]
[370099157,1751879451175,-500.0,0.00024164,2]
[370099158,1751879451185,-2184.33,0.000242,7]
[370099159,1751879451552,-39231.23,0.000242,7]
[370099160,1751879451562,-356.84051267,0.00024245,10]
[370099161,1751879451571,-2039.16,0.000243,7]
[370099162,1751879451581,-164.92476611,0.00024301,2]
[370099163,1751879451590,-151.0,0.00024361,7]
[370099164,1751879451600,-460.0604609,0.00024365,2]
[370099165,1751879451610,-168.0,0.0002437,2]
[370099166,1751879451620,-87645.15,0.000244,2]
[370099167,1751879451630,-288.33198866,0.00024411,2]
[370099168,1751879451639,-288.33198866,0.00024438,2]
[370099169,1751879451649,-172.9991932,0.00024438,2]
[370099170,1751879451659,-164.92476611,0.00024438,2]
[370099171,1751879451669,-288.33198869,0.00024438,2]
[370099172,1751879451679,-600.0,0.00024483,2]
[370099173,1751879451688,-2390.0,0.00024507,2]
[370099174,1751879451698,-356.84051267,0.00024521,11]
[370099175,1751879451708,-366.6942869,0.00024548,2]
[370099176,1751879451717,-366.6942869,0.00024548,2]
[370099177,1751879451727,-2390.0,0.00024591,2]
[370099178,1751879451736,-164.92476611,0.00024603,2]
[370099179,1751879451746,-150.0,0.00024658,2]
[370099180,1751879451755,-576.0368563,0.00024685,2]
[370099181,1751879451765,-576.0368563,0.00024685,2]
[370099182,1751879451775,-576.0368563,0.00024685,2]
[370099183,1751879451785,-576.0368563,0.00024685,2]
[370099184,1751879451795,-366.6942869,0.00024708,2]
[370099185,1751879451804,-366.6942869,0.00024708,2]
[370099186,1751879451812,-366.6942869,0.00024708,2]
[370099187,1751879451821,-733.2805532,0.00024708,2]
[370099188,1751879451830,-732.1446032,0.00024708,2]
[370099189,1751879451839,-3000.0,0.00024712,2]
[370099190,1751879451848,-168.0,0.00024735,2]
[370099191,1751879451856,-901.52706285,0.00024738,2]
[370099192,1751879451865,-151.0,0.00024741,7]
[370099193,1751879451875,-159.4922776,0.00024751,2]
[370099194,1751879451886,-177.763542,0.00024751,2]
[370099195,1751879451897,-576.0368563,0.00024751,2]
[370099196,1751879451906,-177.763542,0.00024751,2]
[370099197,1751879451915,-159.4922776,0.00024751,2]
[370099198,1751879451926,-159.4922776,0.00024751,2]
[370099199,1751879451935,-177.763542,0.00024751,2]
[370099200,1751879451945,-576.0368563,0.00024751,2]
[370099201,1751879451954,-576.0368563,0.00024751,2]
[370099202,1751879451963,-177.763542,0.00024751,2]
[370099203,1751879451974,-576.0368563,0.00024751,2]
[370099204,1751879451984,-159.4922776,0.00024751,2]
[370099205,1751879451995,-576.0368563,0.00024751,2]
[370099206,1751879452005,-159.4922776,0.00024751,2]
[370099207,1751879452014,-177.763542,0.00024751,2]
[370099208,1751879452025,-181.5045785,0.00024751,2]
[370099209,1751879452035,-159.4922776,0.00024751,2]
[370099210,1751879452045,-576.0368563,0.00024751,2]
[370099211,1751879452055,-576.0368563,0.00024751,2]
[370099212,1751879452064,-159.4922776,0.00024751,2]
[370099213,1751879452076,-576.0368563,0.00024751,2]
[370099214,1751879452087,-576.0368563,0.00024751,2]
[370099215,1751879452097,-172.9991932,0.00024767,2]
[370099216,1751879452106,-164.92476611,0.00024767,2]
[370099217,1751879452116,-168.0,0.00024773,2]
[370099218,1751879452125,-248.71531821,0.00024777,2]
[370099219,1751879452135,-356.84051267,0.00024797,11]
[370099220,1751879452144,-168.0,0.00024808,2]
[370099221,1751879452154,-168.0,0.00024829,2]
[370099222,1751879452163,-914.69627603,0.00024834,2]
[370099223,1751879452173,-344.0,0.00024856,2]
[370099224,1751879452183,-339217.8911,0.00024899,4]
[370099225,1751879452192,-166.914918,0.000249,7]
[370099226,1751879452202,-151.0,0.000249,7]
[370099227,1751879452211,-153.042549,0.000249,7]
[370099228,1751879452220,-151.0,0.000249,7]
[370099229,1751879452230,-151.0,0.000249,7]
[370099230,1751879452239,-151.0,0.000249,7]
[370099231,1751879452249,-151.0,0.000249,7]
[370099232,1751879452258,-151.0,0.000249,7]
[370099233,1751879452268,-151.0,0.000249,7]
[370099234,1751879452277,-157.169153,0.000249,7]
[370099235,1751879452286,-151.0,0.000249,7]
[370099236,1751879452296,-151.653595,0.000249,7]
[370099237,1751879452306,-155.999041,0.000249,7]
[370099238,1751879452315,-155.999041,0.000249,7]
[370099239,1751879452324,-151.0,0.000249,7]